[Event "FIDE CB Open 2022"]
[Site "Ceske Budejovice"]
[Date "2022.07.05"]
[Round "5.24"]
[White "Sykora, Ondrej"]
[Black "Svanda, Adam"]
[Result "1/2-1/2"]
[ECO "B01"]
[WhiteElo "2099"]
[BlackElo "1918"]
[Annotator "TA"]
[PlyCount "119"]
[EventDate "2022.07.01"]
[EventType "swiss"]
[EventCountry "CZE"]
[SourceTitle "playchess.com"]
[Source "ChessBase"]
[SourceQuality "1"]
[TimeControl "40/5400+30:1800+30"]

{[%evp 10,119,56,54,72,68,79,64,73,74,76,58,75,59,80,63,96,16,21,2,35,12,24,7,72,6,0,8,50,6,26,0,0,0,6,-10,87,81,163,170,169,139,241,226,233,223,221,218,404,374,566,566,612,604,562,446,447,441,410,423,357,151,119,58,69,66,42,47,67,15,23,21,81,72,72,84,73,81,69,83,83,80,70,67,114,109,103,65,158,172,179,75,129,59,88,13,158,83,178,163,304,82,139,-20,-28,-8,0,0,0,0,0,0]} 1. e4 {[%emt 0:14:15]} d5 {[%emt 0:00:18]} 2. exd5 {[%emt 0:00:07]} Qxd5 {[%emt 0:00:09]} 3. d4 {[%emt 0:00:05]} Nf6 {[%emt 0:00:46]} 4. Nf3 {[%emt 0:00:05]} Bg4 {[%emt 0:01:51]} 5. Be2 {[%emt 0:00:11]} e6 {[%emt 0:01:52]} 6. h3 {[%emt 0:00:06]} Bh5 {[%emt 0:00:27] B01: Scandinavian Defence.} 7. O-O {[%emt 0:00:08]} Be7 {[%emt 0:02:44]} 8. c4 {[%emt 0:00:08]} Qd6 {[%emt 0:01:50] White is slightly better. is the legacy move (8...Qd8).} 9. Nc3 {[%emt 0:05:00]} c6 {[%emt 0:01:34]} 10. Be3 {[%emt 0:00:30]} O-O {[%emt 0:01:20]} 11. Qd2 {[%emt 0:01:06]} Qc7 {[%emt 0:03:04]} 12. Rfd1 {[%emt 0:03:26]} Rd8 {[%emt 0:02:32] [#]} 13. Qc2 $146 {[%emt 0:08:50]} (13. g4 $16 Bg6 14. Bf4) ({Predecessor:} 13. Ne5 Bxe2 14. Qxe2 Nbd7 15. Bf4 Bd6 16. Nxd7 Rxd7 17. Be5 Ne8 18. Rac1 Rad8 19. a3 {0-1 (105) Spoljar,M (2213)-Savic,M (2536) Bizovac 2008}) 13... Nbd7 $11 {[%emt 0:02:59]} 14. Rac1 {[%emt 0:00:18]} Nb6 {[%emt 0:00:30]} 15. b3 {[%emt 0:06:21][%cal Bb2b3,Bb3b4,Bb4b5,Bb5b6][%mdl 32]} Rac8 {[%emt 0:01:58]} 16. Qb2 {[%emt 0:00:11]} Qb8 {[%emt 0:03:32]} (16... Nbd7 $11) 17. a4 {[%emt 0:01:07]} (17. g4 $16 Bg6 18. Ne5) 17... Nbd7 {[%emt 0:15:48]} 18. b4 {[%emt 0:07:06]} a6 {[%emt 0:03:07]} 19. Qb3 {[%emt 0:12:06]} e5 {[%emt 0:12:10]} 20. g4 {[%emt 0:08:27]} Bg6 {[%emt 0:05:33]} 21. d5 {[%emt 0:01:01]} c5 {[%emt 0:03:22]} 22. b5 {[%emt 0:01:17]} Qc7 {[%emt 0:03:37]} (22... e4 $11 23. Nd2 Qe5) 23. Nh4 $16 {[%emt 0:09:50]} Bd6 {[%emt 0:03:42]} (23... e4 $16) 24. Nxg6 {[%emt 0:02:54]} hxg6 {[%emt 0:00:07]} 25. Rb1 {[%emt 0:01:54]} Rb8 {[%emt 0:02:22]} (25... Ne8 $16 {keeps fighting.} 26. Bg5 f6) 26. b6 $18 {[%emt 0:03:38]} Qc8 {[%emt 0:01:09]} 27. g5 {[%emt 0:00:09]} Ne8 {[%emt 0:05:40]} 28. Bg4 {[%emt 0:00:12]} f5 $2 {[%emt 0:00:39]} (28... Bf8 29. Bd2 Nd6) 29. gxf6 $1 {[%emt 0:00:17]} gxf6 {[%emt 0:00:41]} (29... Nexf6 $142 30. Be6+ Kh7) 30. Be6+ {[%emt 0:00:41]} Kh7 {[%emt 0:05:10]} 31. Qc2 {[%emt 0:07:23]} Ng7 {[%emt 0:01:37]} 32. Qe4 {[%emt 0:01:24] Black must now prevent Qh4+.} (32. Bf7 Nf8 33. Qe4 (33. Ne4 Nf5 $17) 33... Nf5 $17) 32... Nxe6 {[%emt 0:01:16]} 33. Qh4+ {[%emt 0:00:35]} Kg8 {[%emt 0:00:10]} 34. dxe6 {[%emt 0:00:50]} Nf8 {[%emt 0:00:11]} 35. Qxf6 {[%emt 0:04:08]} (35. Nd5 $18 {and White stays clearly on top.} Qxe6 36. Nxf6+ Kf7 37. Ne4) 35... Qxe6 $16 {[%emt 0:00:05]} 36. Ne4 {[%emt 0:00:07] White is much more active.} (36. Bg5 $16 {Ne4 is the strong threat.} Qxh3 37. Rxd6 Qg4+ 38. Kf1 Rxd6 39. Qxd6 Qh3+ 40. Ke2 Qxc3 41. Rc1 (41. Qxb8 Qc2+ 42. Bd2 Qxc4+ 43. Kd1 Qxa4+ 44. Kc1 Qc4+ 45. Kd1 Qa4+ 46. Kc1 Qc4+ 47. Kd1 Qa4+ $11) 41... Qb2+ 42. Kf1) 36... Be7 $1 $14 {[%emt 0:02:01]} 37. Qxe6+ {[%emt 0:00:02]} ({Don't play} 37. Rxd8 Rxd8 38. Qf3 Qxc4 $11) 37... Nxe6 {[%emt 0:00:06]} 38. Rd5 {[%emt 0:00:03]} Nd4 {[%emt 0:01:34]} 39. Bxd4 {[%emt 0:02:12]} (39. Kg2 $14) 39... exd4 $11 {[%emt 0:06:30]} 40. Re5 {[%emt 0:00:59]} Rd7 {[%emt 0:03:10]} (40... Kf7 $11 {remains equal.}) 41. Nxc5 $16 {[%emt 0:30:52]} Bxc5 {[%emt 0:30:08]} 42. Rxc5 {[%emt 0:00:02][%mdl 4096] Endgame KRR-KRR} d3 {[%emt 0:00:00]} 43. Rd1 {[%emt 0:00:00]} Rbd8 {[%emt 0:00:00]} 44. Rd2 {[%emt 0:00:00]} Kf7 {[%emt 0:00:00]} 45. Kg2 {[%emt 0:00:00]} Kf6 {[%emt 0:00:00]} 46. Kf3 {[%emt 0:00:00]} Rd6 {[%emt 0:00:00]} (46... Rh7 $14) 47. a5 {[%emt 0:00:00] Strongly threatening Rc7.} R6d7 {[%emt 0:00:00]} 48. Kf4 {[%emt 0:00:00]} Ke6 {[%emt 0:00:00]} (48... Rh7 $14) 49. Ke4 {[%emt 0:00:00]} Rd4+ {[%emt 0:00:00]} 50. Kf3 {[%emt 0:00:00]} (50. Ke3 $18 {is the precise move to win.}) 50... R4d7 {[%emt 0:00:00]} (50... Rh8 $142) 51. Kg4 {[%emt 0:00:00]} (51. h4 $16) 51... Kf6 {[%emt 0:00:00]} 52. f4 {[%emt 0:00:00]} (52. f3 $16) 52... Kf7 {[%emt 0:00:00]} (52... Re7 $1 $11) 53. Kg5 {[%emt 0:00:00]} (53. Kf3 $142) 53... Kg7 {[%emt 0:00:00] [#]} (53... Rd4 $16 {might work better.}) 54. h4 $1 $18 {[%emt 0:00:00]} Rf8 {[%emt 0:00:00]} (54... Rh8 $142 55. Rc7 Rh5+ 56. Kg4 Rxc7 57. bxc7 Rc5) 55. Kg4 $2 {[%emt 0:00:00]} (55. h5 $18 {is more deadly.} gxh5 56. Rd5) 55... Rd4 $16 {[%emt 0:00:00] [#]} 56. Kg5 $2 {[%emt 0:00:00]} ({Much less strong is} 56. Rc7+ Rf7 $16) ({White should try} 56. Kg3 $1 $16) 56... Rfxf4 $11 {[%emt 0:00:00][%csl Gd4][%cal Rf4g4]} 57. Rc7+ {[%emt 0:00:00]} Kf8 {[%emt 0:00:00] The position is equal.} 58. Rxd3 {[%emt 0:05:52]} Rg4+ {[%emt 0:00:00]} 59. Kf6 {[%emt 0:00:04] Threatening mate with Rc8+.} Rgf4+ {[%emt 0:00:00]} 60. Kg5 {[%emt 0:00:07] Weighted Error Value: White=0.34/Black=0.37} 1/2-1/2

[Event "FIDE CB Open 2022"]
[Site "Ceske Budejovice"]
[Date "2022.07.05"]
[Round "5.25"]
[White "Laith, Kasib"]
[Black "Zeleny, Tomas"]
[Result "1-0"]
[ECO "A05"]
[WhiteElo "2079"]
[BlackElo "2136"]
[Annotator "TA"]
[PlyCount "79"]
[EventDate "2022.07.01"]
[EventType "swiss"]
[EventCountry "CZE"]
[SourceTitle "playchess.com"]
[Source "ChessBase"]
[SourceQuality "1"]
[TimeControl "40/5400+30:1800+30"]

{[%evp 18,79,0,0,1,6,6,0,6,10,11,15,29,0,13,0,49,56,38,39,46,52,68,66,59,19,25,0,3,0,12,12,5,10,10,8,54,6,17,-8,-2,-2,-2,-3,-3,-3,651,587,29992,1327,12837,12838,29996,0,1222,0,29996,29995,29995,29996,29997,29998,29998,29999]} 1. e4 {[%emt 0:03:17]} c5 {[%emt 0:00:17]} 2. Nf3 {[%emt 0:00:08]} d6 {[%emt 0:00:26]} 3. g3 {[%emt 0:00:39]} Nf6 {[%emt 0:00:42]} 4. d3 {[%emt 0:00:17]} g6 {[%emt 0:00:11]} 5. Bg2 {[%emt 0:00:10]} Bg7 {[%emt 0:00:32]} 6. O-O {[%emt 0:00:12]} Nc6 {[%emt 0:00:37]} 7. Re1 {[%emt 0:00:17]} O-O {[%emt 0:00:08]} 8. c3 {[%emt 0:00:15]} Rb8 {[%emt 0:01:27]} 9. a4 {[%emt 0:02:41]} a6 {[%emt 0:00:07]} 10. h3 {[%emt 0:00:36]} b5 {[%emt 0:00:39] A05: Réti Opening: 1 Nf3 Nf6.} 11. axb5 {[%emt 0:04:21]} axb5 {[%emt 0:00:05]} 12. d4 {[%emt 0:00:06]} Nd7 {[%emt 0:02:11] The position is equal.} 13. Be3 {[%emt 0:01:03]} Bb7 {[%emt 0:01:45]} 14. Nbd2 {[%emt 0:13:29]} b4 {[%emt 0:01:04] [#]} 15. Rc1 $146 {[%emt 0:04:30]} ({Predecessor:} 15. d5 Nce5 16. Nxe5 Nxe5 17. Qe2 bxc3 18. bxc3 Nd7 19. Rec1 Ra8 20. Qc4 Qc7 21. Rab1 {1-0 (36) Sameer,L (2180)-Blohberger,F (2503) Chess.com INT 2022}) 15... bxc3 {[%emt 0:17:19]} 16. bxc3 {[%emt 0:02:45][%cal Bb2c3,Bc3d4,Bd4d5][%mdl 32]} cxd4 {[%emt 0:13:34]} (16... Ba6 $11 {deserves consideration.}) 17. cxd4 $14 {[%emt 0:07:02]} Nb4 {[%emt 0:15:33]} 18. Bf1 {[%emt 0:05:23] Against Nd3} Nf6 {[%emt 0:01:12]} 19. d5 {[%emt 0:04:36]} Nd7 {[%emt 0:09:05]} 20. Qa4 {[%emt 0:01:00] White is more active.} Na6 {[%emt 0:05:00]} 21. Bxa6 {[%emt 0:06:12]} Ra8 {[%emt 0:00:39]} 22. Rb1 {[%emt 0:09:05]} Bxa6 {[%emt 0:03:33]} 23. Qc6 {[%emt 0:04:42]} Ne5 {[%emt 0:05:36]} 24. Nxe5 {[%emt 0:01:27]} Bxe5 {[%emt 0:00:42]} 25. Nf3 {[%emt 0:00:27]} Bg7 {[%emt 0:04:04]} 26. Bd4 {[%emt 0:01:52]} Bh6 {[%emt 0:00:33]} (26... Qc8 $11) 27. Rb6 {[%emt 0:07:12]} (27. e5 $1 $14 {should be considered.}) 27... Qc8 $11 {[%emt 0:02:04]} 28. Ra1 {[%emt 0:00:05]} Bd3 {[%emt 0:01:22] Hoping for ...Rxa1+.} 29. Rxa8 {[%emt 0:09:22]} Qxa8 {[%emt 0:00:37]} 30. e5 {[%emt 0:00:34]} Be4 {[%emt 0:03:43] A strong pair of Bishops.} 31. exd6 {[%emt 0:02:43]} exd6 {[%emt 0:03:20][%mdl 8192] [#]} (31... Bxd5 $11 32. Qxa8 Rxa8) 32. Qxd6 $1 $18 {[%emt 0:00:27] Qf6 would kill now.} f5 {[%emt 0:04:10] [#]} (32... Bg7 33. Bxg7) 33. Qe6+ {[%emt 0:00:40]} (33. Qe5 $142 $1 Qc8 (33... Qxd5 34. Qh8+) 34. Re6 $1 Bxd5 35. Re7 $1 Qc1+ 36. Kh2 Qh1+ 37. Kxh1 Rf6 38. Qxd5+ Kh8 39. Bxf6+ Bg7 40. Bxg7#) 33... Rf7 {[%emt 0:00:07] [#]} 34. Qe5 $1 {[%emt 0:00:44][%csl Gd4][%cal Re5h8]} Rf8 {[%emt 0:00:59] [#]} (34... Bg7 35. Rb8+) 35. Qe6+ {[%emt 0:00:19]} (35. Ng5 $142 $1 {[%mdl 512]} Rf6 36. Qxf6 Qa1+ 37. Bxa1 Bxg5 38. Qg7#) 35... Rf7 {[%emt 0:00:05] [#]} 36. Qe5 $40 {[%emt 0:00:05][%mdl 128] White mounts an attack.} Rf8 $1 {[%emt 0:00:03]} 37. Qh8+ {[%emt 0:01:14] White mates.} Kf7 {[%emt 0:00:04]} 38. Qxh7+ {[%emt 0:00:35]} Ke8 {[%emt 0:01:47]} 39. Re6+ {[%emt 0:00:38]} Kd8 {[%emt 0:00:23]} 40. Bb6+ {[%emt 0:00:09] Weighted Error Value: White=0.67/Black=0.67} 1-0

[Event "FIDE CB Open 2022"]
[Site "Ceske Budejovice"]
[Date "2022.07.05"]
[Round "5.26"]
[White "Hradek, Matyas"]
[Black "Kovalskyi, Roman"]
[Result "0-1"]
[ECO "B36"]
[WhiteElo "1888"]
[BlackElo "2056"]
[Annotator "TA"]
[PlyCount "100"]
[EventDate "2022.07.01"]
[EventType "swiss"]
[EventCountry "CZE"]
[SourceTitle "playchess.com"]
[Source "ChessBase"]
[SourceQuality "1"]
[TimeControl "40/5400+30:1800+30"]

{[%evp 18,100,38,33,33,33,39,38,32,42,33,28,33,32,36,28,36,29,27,0,29,0,34,0,36,13,31,30,24,0,0,0,25,12,18,24,35,30,45,36,30,35,28,0,42,0,21,13,33,28,31,-44,-46,-27,-27,-39,-54,-77,-77,-84,-93,-93,-91,-82,-79,-87,0,-90,-79,-87,-87,-79,-70,-111,-120,-119,-111,-119,-114,-637,-623,-809,-801,-29981,-12847]} 1. e4 {[%emt 0:00:14]} c5 {[%emt 0:01:18]} 2. Nf3 {[%emt 0:00:04]} g6 {[%emt 0:00:05]} 3. c4 {[%emt 0:00:03]} Nc6 {[%emt 0:00:04]} 4. d4 {[%emt 0:00:05]} cxd4 {[%emt 0:00:03]} 5. Nxd4 {[%emt 0:00:03]} Nf6 {[%emt 0:00:05]} 6. Nc3 {[%emt 0:00:03]} d6 {[%emt 0:00:04]} 7. Be2 {[%emt 0:00:11]} Nxd4 {[%emt 0:00:05]} 8. Qxd4 {[%emt 0:00:04]} Bg7 {[%emt 0:00:06]} 9. Be3 {[%emt 0:00:05]} O-O {[%emt 0:00:04]} 10. Qd2 {[%emt 0:00:05]} a5 {[%emt 0:00:06] B36: Sicilian: Maroczy Bind: Gurgenidze System.} 11. O-O {[%emt 0:00:08]} a4 {[%emt 0:00:05]} 12. Rfc1 {[%emt 0:00:15] Recently 12.Bd4 got a lot of attention.} Qa5 {[%emt 0:00:06] White is slightly better.} 13. Rab1 {[%emt 0:00:15]} Be6 {[%emt 0:00:11]} 14. b4 {[%emt 0:00:31]} axb3 $1 {[%emt 0:00:05]} 15. axb3 {[%emt 0:00:02]} Qb4 {[%emt 0:00:05]} 16. Qc2 {[%emt 0:00:40]} Rfc8 {[%emt 0:01:43][%cal Od6d5]} 17. Bd2 {[%emt 0:03:08] [#] Nd5 is the strong threat.} Qb6 {[%emt 0:00:50]} 18. Be3 {[%emt 0:05:40]} Qb4 {[%emt 0:03:40] [#]} 19. Bd2 $146 {[%emt 0:00:15]} ({Predecessor:} 19. Bf4 Bg4 20. Bd3 Bd7 21. h3 Bc6 22. Kh2 Nh5 23. Ne2 Ra3 24. Bd2 Qb6 25. b4 Ba4 26. c5 Bxc2 {0-1 (26) Dragomirescu,R (2423)-Codenotti,M (2175) Porto Carras 2010}) 19... Qb6 {[%emt 0:00:12]} 20. Be3 {[%emt 0:03:28]} Qd8 {[%emt 0:00:05]} 21. Bf3 {[%emt 0:13:41]} Nd7 {[%emt 0:14:19][%cal Bf6d7,Bd7e5,Be5c6,Bc6b4][%mdl 32]} 22. Qd2 {[%emt 0:15:51]} Be5 {[%emt 0:09:17]} 23. Bd4 {[%emt 0:04:58]} Bxd4 {[%emt 0:12:28]} 24. Qxd4 {[%emt 0:00:05]} Ne5 {[%emt 0:00:05]} 25. Be2 {[%emt 0:01:32]} Nc6 {[%emt 0:00:14]} 26. Qe3 {[%emt 0:02:44]} Nb4 {[%emt 0:04:04]} 27. Na4 {[%emt 0:06:29] Threatens to win with Nb6.} Ra5 {[%emt 0:40:00]} 28. Qd2 {[%emt 0:05:41]} Na6 {[%emt 0:02:10]} 29. Nc3 {[%emt 0:02:00]} Nb4 {[%emt 0:09:32]} 30. Na4 {[%emt 0:00:28]} Nc6 {[%emt 0:00:38]} 31. Nc3 {[%emt 0:00:48]} Raa8 {[%emt 0:01:48]} 32. f4 {[%emt 0:08:09]} Qb6+ {[%emt 0:00:42]} 33. Kh1 {[%emt 0:00:38]} Qd4 {[%emt 0:00:47]} 34. Qe1 {[%emt 0:08:20]} ({White should play} 34. Qb2 $14) 34... Qe3 $15 {[%emt 0:00:05]} 35. Qf1 {[%emt 0:00:18]} f6 {[%emt 0:00:21]} 36. f5 {[%emt 0:05:52]} Bf7 {[%emt 0:00:04]} 37. fxg6 {[%emt 0:00:32]} hxg6 {[%emt 0:00:04]} ({Much weaker is} 37... Bxg6 38. Nd5 Qxe4 39. Nb6 $14) 38. Nd5 {[%emt 0:00:07]} Bxd5 {[%emt 0:00:25]} ({Much less strong is} 38... Qxe4 39. Bf3 Qf5 40. Nb6 $16) 39. exd5 {[%emt 0:00:37]} Ne5 {[%emt 0:01:51]} 40. Re1 {[%emt 0:03:11][%cal Oe2g4]} Qd4 {[%emt 0:01:58] Inhibits Bg4. Black is much more active.} 41. Red1 {[%emt 0:33:06]} Qe3 {[%emt 0:06:28]} 42. Re1 $1 {[%emt 0:00:00][%cal Oe2g4]} Qd2 {[%emt 0:02:15]} 43. Red1 {[%emt 0:00:00]} Qb4 {[%emt 0:00:06]} 44. Qf4 {[%emt 0:00:00]} Kg7 {[%emt 0:01:15] Inhibits Qh6+.} 45. Rd4 {[%emt 0:00:00]} Ra2 {[%emt 0:04:35]} 46. Qe3 {[%emt 0:00:00]} Rh8 {[%emt 0:00:45]} 47. Rc1 {[%emt 0:00:00]} Qc5 {[%emt 0:02:18][%cal Oa2e2] And now ...Rxe2! would win.} 48. b4 $2 {[%emt 0:00:00][%mdl 8192] [#]} (48. Re4 $17) 48... Rxe2 $1 $19 {[%emt 0:01:22][%mdl 512]} 49. Qxe2 {[%emt 0:01:39]} (49. bxc5 Rxe3) 49... Qxd4 {[%emt 0:00:12]} 50. c5 {[%emt 0:00:02]} Qf4 {[%emt 0:00:49] Weighted Error Value: White=0.48/Black=0.08 (flawless)} 0-1

[Event "FIDE CB Open 2022"]
[Site "Ceske Budejovice"]
[Date "2022.07.05"]
[Round "5.27"]
[White "Blumel, Otto"]
[Black "Mrazik, Tomas"]
[Result "1/2-1/2"]
[ECO "B13"]
[WhiteElo "1855"]
[BlackElo "2055"]
[Annotator "TA"]
[PlyCount "65"]
[EventDate "2022.07.01"]
[EventType "swiss"]
[EventCountry "CZE"]
[SourceTitle "playchess.com"]
[Source "ChessBase"]
[SourceQuality "1"]
[TimeControl "40/5400+30:1800+30"]

{[%evp 9,65,0,18,6,29,-5,28,12,88,87,81,56,79,-16,75,69,125,135,130,94,71,91,106,109,148,95,87,47,48,-55,-72,-74,-77,-68,-68,-70,-70,-236,-102,-128,-62,-207,-160,-160,-135,-173,-37,-36,-9,-12,24,28,31,27,41,-846,27,35]} 1. e4 {[%emt 0:00:44]} c6 {[%emt 0:00:08]} 2. d4 {[%emt 0:00:28]} d5 {[%emt 0:00:07]} 3. exd5 {[%emt 0:00:14]} cxd5 {[%emt 0:00:03]} 4. c3 {[%emt 0:00:09]} Nc6 {[%emt 0:00:12]} 5. Nf3 {[%emt 0:00:09]} Qc7 {[%emt 0:01:00]} 6. Na3 {[%emt 0:00:55] Black must now prevent Nb5. B13: Caro-Kann: Exchange Variation and Panov-Botvinnik Attack.} Bg4 {[%emt 0:01:45]} 7. Nb5 {[%emt 0:00:53] [#]} Qb6 $146 {[%emt 0:02:52]} ({Predecessor:} 7... Qb8 8. Be2 a6 9. Na3 e6 10. Nc2 Bd6 11. h3 Bh5 12. Be3 Nf6 13. Nd2 Bg6 {0-1 (24) Kelbl,J (1200)-Raiteri,E (1000) SEMI email 2005}) 8. Qb3 {[%emt 0:01:01]} Rc8 {[%emt 0:15:31]} (8... Bxf3 $11 9. gxf3 e6) 9. Ne5 $16 {[%emt 0:00:24]} Be6 {[%emt 0:04:44]} (9... Nxe5 $2 10. dxe5 Be6 11. Be3 $16) 10. Be3 {[%emt 0:03:10]} Nf6 {[%emt 0:09:02]} 11. Nd3 {[%emt 0:02:44]} (11. Bf4 $16) 11... Nd7 {[%emt 0:11:55]} (11... Na5 $1 $11 12. Qa4 Bd7) 12. Nc5 {[%emt 0:06:14]} Nxc5 {[%emt 0:01:01]} (12... Na5 $14 13. Qa4 Bf5) 13. dxc5 {[%emt 0:00:11]} Qd8 {[%emt 0:01:07][%cal Od5d4] Hoping for ...d4!} 14. O-O-O {[%emt 0:01:48]} a6 {[%emt 0:02:33]} 15. Nd4 {[%emt 0:02:39] White is more active.} Nxd4 {[%emt 0:00:38]} 16. Bxd4 {[%emt 0:01:18]} (16. cxd4 $6 Qd7 $11) 16... Qc7 {[%emt 0:01:01] [#]} 17. Kb1 {[%emt 0:01:53]} (17. Be2 $142 $1) 17... Bf5+ {[%emt 0:02:06]} 18. Ka1 {[%emt 0:00:07]} e6 {[%emt 0:01:02]} 19. c4 {[%emt 0:03:28]} ({White should play} 19. Qa4+ $14 Qd7 20. Qxd7+ Kxd7 21. b4) 19... Bxc5 $15 {[%emt 0:02:27]} (19... e5 20. Re1 f6 21. f4 Bxc5 {[#]} 22. Bxe5 $1 fxe5 23. Rxe5+ Be7 24. Rxf5 dxc4 25. Qa4+ Qc6 26. Qxc6+ Rxc6 27. Kb1 $11) 20. Bxg7 {[%emt 0:02:06]} Rg8 {[%emt 0:03:41]} 21. Bc3 {[%emt 0:03:36]} dxc4 {[%emt 0:01:51]} ({Much less strong is} 21... Bxf2 22. cxd5 Rd8 23. Be2 $16) 22. Bxc4 {[%emt 0:02:21]} Rxg2 {[%emt 0:03:36]} 23. Bf6 $2 {[%emt 0:02:53]} (23. Bd3 $15 Bxd3 24. Rxd3) 23... Rg6 {[%emt 0:08:04]} (23... Rxf2 $19 24. Rhg1 Bg6) 24. Bh4 $17 {[%emt 0:02:58]} b5 {[%emt 0:01:21]} (24... e5 $17 {aiming for ...Bd4.} 25. Rc1 (25. Bd3 Bxd3 26. Qxd3 Bd4 $17) 25... Kf8) 25. Be2 {[%emt 0:04:26]} (25. Bd3 $15) 25... Be7 {[%emt 0:01:34]} 26. Bg3 {[%emt 0:02:02]} Qc2 $36 {[%emt 0:00:57][%mdl 2048] Keeping White busy.} 27. Qe3 {[%emt 0:01:55] Rc1 is the strong threat.} Qe4 {[%emt 0:10:29]} (27... Bf6 $19 {[%csl Gf6][%cal Rc2b2]} 28. Be5 Qe4) 28. Qa7 $1 $15 {[%emt 0:01:27] Strongly threatening Qd7+.} Ra8 {[%emt 0:04:39]} ({Don't take} 28... e5 29. Bd3 Qf3 30. Bxf5 Qxf5 31. Bxe5 $14) (28... Kf8 $5 {[%cal Re4e2]} 29. Qxa6 e5 30. Qxb5 Rd6 $11) 29. Qc7 {[%emt 0:01:51]} Rd8 {[%emt 0:01:51] Against Bd3} (29... Qxe2 $2 30. Qc6+ Kf8 31. Qxa8+ Kg7 32. Rhe1 $16) (29... Qc2 $5 {[%cal Rc2c7]}) 30. Bh5 {[%emt 0:05:40]} Bg4 {[%emt 0:04:15]} 31. Bxg6 {[%emt 0:04:47] The board is on fire.} hxg6 {[%emt 0:00:30]} 32. Rxd8+ {[%emt 0:01:51]} Bxd8 {[%emt 0:00:00] A strong pair of Bishops.} 33. Qc1 {[%emt 0:00:12] Weighted Error Value: White=0.40/Black=0.34} 1/2-1/2

[Event "FIDE CB Open 2022"]
[Site "Ceske Budejovice"]
[Date "2022.07.05"]
[Round "5.28"]
[White "Sudrich, Radek"]
[Black "Vaculik, Martin"]
[Result "1/2-1/2"]
[ECO "D71"]
[WhiteElo "2049"]
[BlackElo "2284"]
[Annotator "TA"]
[PlyCount "53"]
[EventDate "2022.07.01"]
[EventType "swiss"]
[EventCountry "CZE"]
[SourceTitle "playchess.com"]
[Source "ChessBase"]
[SourceQuality "1"]
[TimeControl "40/5400+30:1800+30"]

{[%evp 16,53,0,0,0,-16,0,-22,-20,-28,-12,-7,-19,-15,-16,-36,-36,-47,-25,-28,-32,-35,-31,-39,-21,-23,-21,-30,0,8,11,-30,-17,-22,-10,-19,-18,-10,-17,-25]} 1. d4 {[%emt 0:00:06]} Nf6 {[%emt 0:01:00]} 2. c4 {[%emt 0:00:30]} g6 {[%emt 0:00:50]} 3. g3 {[%emt 0:00:07]} Bg7 {[%emt 0:00:16]} 4. Bg2 {[%emt 0:00:10]} O-O {[%emt 0:00:22]} 5. e3 {[%emt 0:02:15]} c6 {[%emt 0:02:58]} 6. Ne2 {[%emt 0:00:17]} d5 {[%emt 0:00:39]} 7. cxd5 {[%emt 0:01:18]} cxd5 {[%emt 0:01:45]} 8. O-O {[%emt 0:00:29]} Nc6 {[%emt 0:05:52]} 9. Nbc3 {[%emt 0:02:27]} e6 {[%emt 0:00:23] D71: Fianchetto Grünfeld: 3 g3 d5 sidelines and 5 cxd5 (without Nf3).} 10. a3 {[%emt 0:06:50]} Bd7 {[%emt 0:01:34]} 11. b4 {[%emt 0:00:18]} Rc8 {[%emt 0:02:48] [#]} 12. Bb2 $146 {[%emt 0:01:10]} ({Predecessor:} 12. Qb3 Qe7 13. Bb2 Rfd8 14. Rae1 h5 15. e4 Nxe4 16. Nxe4 dxe4 17. Bxe4 Qf8 18. Rd1 {0-1 (29) Ramis Sebastia,J (1582)-Guzman Otero,J (1962) Campos 2016}) 12... b6 {[%emt 0:07:05]} 13. Qd3 {[%emt 0:08:37]} Qe7 {[%emt 0:03:08]} 14. Rac1 {[%emt 0:02:32]} Ne8 {[%emt 0:01:19][%cal Bf6e8,Be8d6,Bd6c4][%mdl 32]} 15. Nb1 {[%emt 0:08:27]} Nd6 {[%emt 0:02:42]} 16. Rfd1 {[%emt 0:02:55]} Nb8 {[%emt 0:00:48]} 17. Rxc8 {[%emt 0:09:13]} Rxc8 {[%emt 0:00:28]} 18. Rc1 {[%emt 0:00:20]} Nc4 {[%emt 0:02:45]} 19. Qb3 {[%emt 0:10:35]} Nc6 {[%emt 0:05:34][%cal Bb8c6,Bc6d8,Bd8b7,Bb7d6,Bd6c4][%mdl 32]} 20. Bc3 {[%emt 0:05:48]} Nd8 {[%emt 0:06:48]} 21. Nd2 {[%emt 0:03:45]} Nb7 {[%emt 0:01:31]} 22. Nxc4 {[%emt 0:00:37]} Rxc4 {[%emt 0:00:03]} 23. Bb2 {[%emt 0:02:45]} Nd6 {[%emt 0:03:09]} 24. Nc3 {[%emt 0:04:44] The position is equal.} Rc8 {[%emt 0:03:16]} 25. b5 {[%emt 0:08:28]} Nc4 {[%emt 0:03:05]} 26. a4 {[%emt 0:00:18]} Bf8 {[%emt 0:03:29]} 27. Na2 {[%emt 0:06:58] Weighted Error Value: White=0.07 (flawless) /Black=0.07 (flawless)} 1/2-1/2